bitfinex/quotes_SOLUSD_20251116
["timestamp","ask_amount","ask_price","bid_price","bid_amount"]
[1763311565174,9.78882769,136.77,136.76,35.59301259]
[1763311565371,9.78882769,136.78,136.76,35.59301259]
[1763311565778,9.78882769,136.78,136.76,22.6512]
[1763311565979,9.78882769,136.78,136.77,12.94181259]
[1763311566281,4.88271511,136.79,136.77,12.94181259]
[1763311566481,9.78882769,136.83,136.81,22.6512]
[1763311566799,4.88186096,136.84,136.82,12.94181259]
[1763311566972,9.78882769,136.85,136.82,12.94181259]
[1763311567172,0.72,136.84,136.82,12.94181259]
[1763311567397,5.60186096,136.84,136.81,35.59301259]
[1763311567702,9.78882769,136.83,136.82,12.94181259]
[1763311567904,10.50882769,136.86,136.85,22.6512]
[1763311568077,15.3978573,136.86,136.85,22.6512]
[1763311568472,10.50882769,136.86,136.85,22.6512]
[1763311568676,15.3978573,136.86,136.85,22.6512]
[1763311569004,14.6778573,136.86,136.85,22.6512]
[1763311569303,9.78882769,136.86,136.85,22.6512]
[1763311570193,5.70319766,136.88,136.85,35.59301259]
[1763311570415,4.98319766,136.88,136.87,12.94181259]
[1763311570709,0.1,136.88,136.85,23.2712]
[1763311570885,0.1,136.88,136.87,12.94181259]
[1763311571340,0.1,136.88,136.87,13.56181259]
[1763311571875,0.1,136.9,136.89,22.6512]
[1763311572109,0.1,136.9,136.89,35.59301259]
[1763311572307,0.1,136.9,136.89,36.11301259]
[1763311573596,0.1,136.9,136.89,12.94181259]
[1763311573828,0.1,136.9,136.85,0.52]
[1763311574114,0.1,136.9,136.89,12.94181259]
[1763311574317,0.1,136.9,136.88,12.94181259]
[1763311574516,0.1,136.9,136.89,22.6512]
[1763311574894,0.1,136.9,136.89,12.94181259]
[1763311576194,0.1,136.9,136.89,35.59301259]
[1763311576390,0.1,136.92,136.91,22.6512]
[1763311576607,0.1,136.92,136.91,36.01301259]
[1763311576992,0.1,136.92,136.91,35.59301259]
[1763311577416,0.1,136.92,136.86,0.42]
[1763311577626,0.1,136.92,136.91,12.94181259]
[1763311578214,0.1,136.92,136.91,13.36181259]
[1763311578614,0.1,136.95,136.94,12.94181259]
[1763311578797,0.1,136.95,136.94,13.26181259]
[1763311579423,0.1,136.95,136.94,12.94181259]
[1763311579604,0.81,136.95,136.93,22.6512]
[1763311580012,0.81,136.95,136.9,12.94181259]
[1763311580013,9.78882769,136.94,136.9,12.94181259]
[1763311580215,9.78882769,136.94,136.89,12.94181259]
[1763311580418,9.78882769,136.92,136.88,12.94181259]
[1763311580618,9.78882769,136.9,136.8,12.94181259]
[1763311580814,22.73064028,136.88,136.82,12.94181259]
[1763311581013,22.73064028,136.88,136.78,22.28916993]
[1763311581014,9.78882769,136.88,136.86,22.6512]
[1763311581220,0.71,136.87,136.86,22.6512]
[1763311581409,0.71,136.87,136.74,40.25594458]
[1763311581410,9.78882769,136.86,136.75,0.32]
[1763311581604,63.65181259,136.87,136.75,0.32]
[1763311581605,0.71,136.87,136.84,12.94181259]
[1763311581903,9.78882769,136.86,136.75,22.29399743]
[1763311582107,9.78882769,136.86,136.82,12.94181259]
[1763311582322,0.71,136.85,136.82,12.94181259]
[1763311582526,0.71,136.85,136.84,22.6512]
[1763311582729,9.78882769,136.84,136.81,12.94181259]
[1763311582910,9.78882769,136.84,136.8,12.94181259]
[1763311583120,50.71,136.85,136.79,12.94181259]
[1763311583121,9.78882769,136.82,136.79,12.94181259]
[1763311583641,10.49882769,136.81,136.8,35.59301259]
[1763311584114,9.78882769,136.84,136.82,22.6512]
[1763311584314,59.78882769,136.82,136.77,12.94181259]
[1763311584514,59.78882769,136.82,136.67,20.29122672]
[1763311584515,9.78882769,136.79,136.74,12.94181259]
[1763311584718,50.0,136.8,136.76,12.94181259]
[1763311584905,10.49882769,136.8,136.79,12.94181259]
[1763311586231,9.78882769,136.83,136.79,12.94181259]
[1763311586425,10.49882769,136.83,136.82,12.94181259]
[1763311587730,9.78882769,136.84,136.82,12.94181259]
[1763311587902,10.49882769,136.84,136.82,12.94181259]
[1763311588104,0.71,136.83,136.78,22.6512]
[1763311588343,9.78882769,136.8,136.72,0.69]
[1763311588537,9.78882769,136.8,136.77,12.94181259]
[1763311588833,9.78882769,136.78,136.73,22.6512]
[1763311589339,0.71,136.78,136.75,7.42995349]
[1763311589833,0.71,136.78,136.71,23.3412]
[1763311589834,0.71,136.78,136.68,0.69]
[1763311590043,9.78882769,136.77,136.72,7.42995349]
[1763311590539,0.71,136.76,136.73,7.42995349]
[1763311590730,0.71,136.76,136.68,0.69]
[1763311590917,0.71,136.76,136.72,7.42995349]
[1763311591924,9.78882769,136.75,136.73,7.42995349]
[1763311592109,9.78882769,136.75,136.66,0.69]
[1763311592309,10.49882769,136.75,136.73,7.42995349]
[1763311592847,50.0,136.76,136.74,7.42995349]
[1763311593022,10.49882769,136.75,136.73,7.42995349]
[1763311593337,10.49882769,136.75,136.72,7.42995349]
[1763311593640,22.6512,136.78,136.69,0.69]
[1763311593641,9.78882769,136.77,136.74,7.42995349]
[1763311593849,9.78882769,136.77,136.69,0.69]
[1763311593850,10.49882769,136.77,136.69,0.69]
[1763311594128,9.78882769,136.75,136.71,7.42995349]
[1763311594332,17.21878118,136.77,136.69,22.6512]
[1763311594333,73.3612,136.78,136.69,23.3412]
[1763311594640,73.3612,136.78,136.73,7.42995349]
[1763311594641,10.49882769,136.77,136.73,7.42995349]
[1763311595019,9.78882769,136.75,136.7,0.69]
[1763311595231,9.78882769,136.77,136.74,7.42995349]
[1763311595545,0.71,136.77,136.72,7.42995349]
[1763311595748,9.78882769,136.75,136.72,7.42995349]
[1763311596117,14.63758371,136.77,136.72,7.42995349]
[1763311596354,0.71,136.75,136.73,7.42995349]
[1763311596521,0.71,136.75,136.74,7.42995349]
[1763311596924,0.71,136.75,136.73,7.42995349]
[1763311597948,6.77083772,136.82,136.74,8.11995349]
[1763311598125,9.78882769,136.79,136.74,0.69]
[1763311598534,9.78882769,136.79,136.75,22.6512]
[1763311598868,0.71,136.8,136.75,22.6512]
[1763311599052,0.71,136.8,136.75,23.3412]
[1763311599346,0.71,136.8,136.78,7.42995349]
[1763311600230,0.71,136.8,136.72,30.08115349]
[1763311600231,9.78882769,136.79,136.72,30.08115349]
[1763311600539,67.21878118,136.79,136.69,0.69]
[1763311600739,67.21878118,136.79,136.74,7.42995349]
[1763311600740,5.54586975,136.78,136.74,7.42995349]
[1763311600927,0.71,136.78,136.74,7.42995349]
[1763311601128,0.71,136.77,136.74,7.42995349]
[1763311601328,0.71,136.77,136.71,0.69]
[1763311601534,0.71,136.77,136.74,7.42995349]
[1763311602453,9.78882769,136.79,136.76,7.42995349]
[1763311602619,9.78882769,136.79,136.78,7.42995349]
[1763311602823,103.91,136.81,136.78,7.42995349]
[1763311603023,10.49882769,136.8,136.78,7.42995349]
[1763311603253,10.49882769,136.8,136.73,22.6512]
[1763311603254,10.49882769,136.8,136.77,7.42995349]
[1763311603418,0.71,136.79,136.76,7.42995349]
[1763311603621,0.71,136.79,136.75,7.42995349]
[1763311603862,50.71,136.79,136.71,0.72]
[1763311604165,9.78882769,136.78,136.73,7.42995349]
[1763311604322,10.47882769,136.78,136.73,7.42995349]
[1763311604526,10.47882769,136.78,136.69,23.3712]
[1763311604527,9.78882769,136.76,136.72,7.42995349]
[1763311604942,9.78882769,136.74,136.72,7.42995349]
[1763311605161,103.2,136.78,136.73,8.14995349]
[1763311605361,9.78882769,136.77,136.75,7.42995349]
[1763311605536,9.78882769,136.77,136.76,7.42995349]
[1763311605739,0.69,136.77,136.76,7.42995349]
[1763311605932,9.78882769,136.79,136.76,7.42995349]
[1763311606359,9.78882769,136.77,136.76,7.42995349]
[1763311607430,0.69,136.77,136.76,7.42995349]
[1763311607856,0.69,136.77,136.7,22.6512]
[1763311607857,0.69,136.77,136.75,7.42995349]
[1763311608053,0.69,136.77,136.74,7.42995349]
[1763311608972,10.47882769,136.77,136.74,7.42995349]
[1763311609464,9.78882769,136.75,136.74,7.42995349]
[1763311610343,0.69,136.75,136.73,7.42995349]
[1763311610552,0.69,136.75,136.72,7.42995349]
[1763311611068,9.78882769,136.77,136.74,7.42995349]
[1763311611069,10.47882769,136.77,136.74,7.42995349]
[1763311611468,0.69,136.76,136.74,7.42995349]
[1763311611962,10.47882769,136.76,136.75,7.42995349]
[1763311612649,10.47882769,136.79,136.75,7.42995349]
[1763311612849,22.6512,136.8,136.76,7.42995349]
[1763311613056,10.47882769,136.79,136.77,7.42995349]
[1763311613450,10.47882769,136.79,136.7,22.6512]
[1763311613451,9.78882769,136.77,136.75,7.42995349]
[1763311613651,9.78882769,136.77,136.74,7.42995349]
[1763311613888,9.78882769,136.77,136.64,27.92538922]
[1763311613889,0.69,136.76,136.67,0.72]
[1763311614062,0.69,136.76,136.72,7.42995349]
[1763311614246,0.69,136.76,136.73,7.42995349]
[1763311614944,0.69,136.76,136.67,0.72]
[1763311614945,9.78882769,136.75,136.67,0.72]
[1763311615139,9.78882769,136.75,136.7,7.42995349]
[1763311615356,9.78882769,136.73,136.69,7.42995349]
[1763311615978,9.78882769,136.71,136.64,0.2]
[1763311616168,9.78882769,136.69,136.64,0.2]
[1763311616477,17.21878118,136.69,136.64,0.2]
[1763311616649,0.69,136.68,136.64,0.2]
[1763311617044,9.78882769,136.67,136.64,0.2]
[1763311617462,0.69,136.69,136.64,7.62995349]
[1763311617674,9.78882769,136.69,136.66,7.42995349]
[1763311617880,9.78882769,136.7,136.65,0.72]
[1763311618072,9.78882769,136.7,136.68,7.42995349]
[1763311618390,9.78882769,136.7,136.64,0.2]
[1763311618391,0.69,136.69,136.67,7.42995349]
[1763311618889,0.69,136.69,136.65,7.42995349]
[1763311619096,0.69,136.69,136.66,7.42995349]
[1763311619986,9.78882769,136.7,136.67,7.42995349]
[1763311620191,0.69,136.69,136.66,7.42995349]
[1763311620487,9.78882769,136.72,136.65,0.72]
[1763311620658,9.78882769,136.72,136.7,7.42995349]
[1763311620854,5.51481831,136.73,136.65,0.72]
[1763311620855,9.78882769,136.73,136.65,0.72]
[1763311621160,14.61368652,136.73,136.7,7.42995349]
[1763311621363,9.78882769,136.73,136.72,7.42995349]
[1763311621558,9.78882769,136.75,136.72,7.42995349]
[1763311621788,14.62278317,136.75,136.69,23.3712]
[1763311622082,14.62278317,136.75,136.73,7.42995349]
[1763311622285,15.31278317,136.75,136.73,7.42995349]
[1763311622589,0.69,136.74,136.73,7.42995349]
[1763311622796,9.78882769,136.73,136.66,22.6512]
[1763311622961,14.62278317,136.73,136.69,7.42995349]
[1763311623164,9.78882769,136.71,136.67,7.42995349]
[1763311623380,9.78882769,136.69,136.65,7.42995349]
[1763311623961,9.78882769,136.67,136.65,7.42995349]
[1763311624169,9.78882769,136.67,136.66,7.42995349]
[1763311624365,4.85597843,136.69,136.66,7.42995349]
[1763311624677,4.85597843,136.71,136.68,7.42995349]
[1763311624995,9.78882769,136.74,136.7,7.42995349]
[1763311625182,9.78882769,136.74,136.67,0.72]
[1763311625183,0.69,136.74,136.72,7.42995349]
[1763311625392,0.69,136.74,136.67,22.6512]
[1763311625393,10.47882769,136.73,136.67,22.6512]
[1763311625590,9.78882769,136.72,136.69,7.42995349]
[1763311625773,14.6500716,136.72,136.71,7.42995349]
[1763311626096,14.6500716,136.72,136.64,7.62995349]
[1763311626097,10.47882769,136.71,136.66,7.42995349]
[1763311626281,9.78882769,136.69,136.66,7.42995349]
[1763311626476,9.78882769,136.67,136.66,7.42995349]
[1763311626999,82.44002769,136.66,136.64,0.2]
[1763311627195,32.44002769,136.63,136.62,0.2]
[1763311627365,59.78882769,136.61,136.59,0.2]
[1763311627569,64.6500716,136.61,136.59,0.2]
[1763311627903,72.77002509,136.61,136.59,0.2]
[1763311628204,72.77002509,136.61,136.58,0.2]
[1763311628205,59.78882769,136.59,136.58,0.2]
[1763311628519,59.78882769,136.59,136.52,0.2]
[1763311628520,82.44002769,136.57,136.52,0.2]
[1763311628802,82.44002769,136.57,136.3,12.29755465]
[1763311628803,70.41115089,136.59,136.46,7.42995349]
[1763311628804,9.78882769,136.48,136.46,7.42995349]
[1763311628980,9.78882769,136.5,136.46,8.14995349]
[1763311629179,14.63240761,136.5,136.46,8.14995349]
[1763311629495,14.63240761,136.5,136.47,0.72]
[1763311629705,14.63240761,136.5,136.45,7.42995349]
[1763311629878,14.63240761,136.5,136.46,0.72]
[1763311630078,14.63240761,136.5,136.46,8.14995349]
[1763311630284,14.63240761,136.5,136.47,0.72]
[1763311630495,22.0623611,136.5,136.45,7.42995349]
[1763311630695,17.21878118,136.5,136.44,7.42995349]
[1763311630994,9.78882769,136.5,136.44,8.14995349]
[1763311631200,9.78882769,136.46,136.42,0.72]
[1763311631387,17.21878118,136.46,136.42,0.72]
[1763311631584,17.21878118,136.46,136.41,7.42995349]
[1763311631585,17.21878118,136.46,136.35,22.8512]
[1763311631776,9.78882769,136.42,136.38,0.72]
[1763311632400,9.78882769,136.42,136.41,7.42995349]
[1763311632587,9.78882769,136.46,136.41,7.42995349]
[1763311632910,50.0,136.45,136.38,8.14995349]
[1763311633077,57.42995349,136.45,136.38,0.72]
[1763311633280,9.78882769,136.46,136.43,7.42995349]
[1763311633482,9.78882769,136.48,136.43,7.42995349]
[1763311633684,17.21878118,136.48,136.42,0.72]
[1763311633988,17.21878118,136.46,136.4,30.08115349]
[1763311634197,17.21878118,136.46,136.37,0.72]
[1763311634198,9.78882769,136.43,136.37,0.72]
[1763311634386,9.78882769,136.43,136.4,7.42995349]
[1763311634576,9.78882769,136.43,136.41,7.42995349]
[1763311634784,9.78882769,136.45,136.42,7.42995349]
[1763311634987,9.78882769,136.45,136.44,7.42995349]
[1763311635290,50.0,136.46,136.38,22.6512]
[1763311635490,9.78882769,136.45,136.41,7.42995349]
[1763311635680,50.0,136.44,136.39,0.72]
[1763311635878,50.0,136.44,136.43,7.42995349]
[1763311635879,9.78882769,136.44,136.43,7.42995349]
[1763311636115,9.78882769,136.44,136.41,7.42995349]
[1763311636279,9.78882769,136.46,136.43,7.42995349]
[1763311636606,50.0,136.51,136.45,7.42995349]
[1763311636779,50.0,136.53,136.49,7.42995349]
[1763311636982,9.78882769,136.52,136.5,7.42995349]
[1763311637403,50.0,136.53,136.5,7.42995349]
[1763311637607,57.42995349,136.53,136.49,7.42995349]
[1763311637785,9.78882769,136.51,136.48,7.42995349]
[1763311637979,9.78882769,136.48,136.43,22.6512]
[1763311638189,9.78882769,136.48,136.46,7.42995349]
[1763311638488,50.0,136.47,136.44,7.42995349]
[1763311639385,9.78882769,136.5,136.46,7.42995349]
[1763311639588,9.78882769,136.5,136.48,7.42995349]
[1763311639807,9.78882769,136.52,136.48,7.42995349]
[1763311639980,17.21878118,136.52,136.48,7.42995349]
[1763311640205,9.78882769,136.52,136.49,7.42995349]
[1763311640714,9.78882769,136.52,136.48,7.42995349]
[1763311640913,9.78882769,136.5,136.47,7.42995349]
[1763311641293,50.0,136.49,136.46,7.42995349]
[1763311641800,9.78882769,136.48,136.45,7.42995349]
[1763311642015,50.0,136.47,136.45,7.42995349]
[1763311642213,50.0,136.47,136.42,0.72]
[1763311642214,50.0,136.47,136.44,7.42995349]
[1763311642526,50.0,136.45,136.42,7.42995349]
[1763311642919,9.78882769,136.44,136.4,7.42995349]
[1763311643105,9.78882769,136.44,136.42,7.42995349]
[1763311643312,9.78882769,136.46,136.41,0.72]
[1763311643626,9.78882769,136.46,136.42,7.42995349]
[1763311644139,59.78882769,136.44,136.38,0.72]
[1763311644296,9.78882769,136.41,136.39,7.42995349]
[1763311644708,50.26,136.4,136.35,0.2]
[1763311644913,50.0,136.38,136.35,0.2]
[1763311645317,9.78882769,136.37,136.35,0.2]
[1763311645507,59.78882769,136.36,136.35,0.2]
[1763311645721,67.47878118,136.36,136.35,0.2]
[1763311646032,90.12998118,136.36,136.35,0.2]
[1763311646213,59.78882769,136.36,136.35,0.2]
[1763311646909,9.78882769,136.36,136.35,7.62995349]
[1763311647113,9.78882769,136.39,136.35,8.34995349]
[1763311647325,9.78882769,136.39,136.36,0.72]
[1763311647523,30.08115349,136.42,136.36,0.72]
[1763311647524,72.6512,136.42,136.36,0.72]
[1763311647739,50.0,136.42,136.39,7.42995349]
[1763311647936,9.78882769,136.41,136.39,7.42995349]
[1763311648239,50.0,136.4,136.37,7.42995349]
[1763311648823,9.78882769,136.41,136.38,13.00910085]
[1763311649331,50.0,136.44,136.4,13.00910085]
[1763311649512,9.78882769,136.43,136.41,13.00910085]
[1763311650033,9.78882769,136.43,136.41,0.72]
[1763311650226,0.26,136.48,136.42,13.00910085]
[1763311650227,50.0,136.46,136.42,13.00910085]
[1763311650420,9.78882769,136.43,136.37,0.72]
[1763311650620,9.78882769,136.4,136.37,35.66030085]
[1763311651113,9.78882769,136.4,136.35,0.92]
[1763311651114,9.78882769,136.4,136.36,13.00910085]
[1763311651314,9.78882769,136.4,136.37,13.00910085]
[1763311652444,9.78882769,136.42,136.39,13.00910085]
[1763311652634,9.78882769,136.42,136.41,13.00910085]
[1763311652943,9.78882769,136.44,136.4,22.6512]
[1763311653129,9.78882769,136.44,136.43,13.00910085]
[1763311653318,9.78882769,136.44,136.42,13.00910085]
[1763311653513,9.78882769,136.44,136.41,13.00910085]
[1763311654032,9.78882769,136.44,136.42,13.72910085]
[1763311654231,50.0,136.48,136.43,13.00910085]
[1763311654443,9.78882769,136.47,136.45,13.00910085]
[1763311654640,17.6,136.49,136.46,13.00910085]
[1763311654816,67.6,136.49,136.46,13.00910085]
[1763311655023,9.78882769,136.48,136.46,13.00910085]
[1763311655238,9.78882769,136.48,136.43,22.6512]
[1763311655239,9.78882769,136.48,136.45,13.00910085]
[1763311655655,9.78882769,136.46,136.4,0.72]
[1763311655949,50.0,136.45,136.42,13.00910085]
[1763311656247,50.0,136.45,136.35,0.2]
[1763311656248,50.0,136.4,136.35,0.2]
[1763311656466,50.0,136.42,136.36,0.72]
[1763311656746,9.78882769,136.41,136.36,0.72]
[1763311656948,9.78882769,136.39,136.36,13.00910085]
[1763311657160,63.00910085,136.43,136.38,13.00910085]
[1763311657325,63.00910085,136.43,136.37,0.72]
[1763311657326,50.0,136.45,136.41,13.00910085]
[1763311657524,9.78882769,136.44,136.39,22.6512]
[1763311657742,9.78882769,136.44,136.41,13.00910085]
[1763311657958,9.78882769,136.44,136.42,13.72910085]
[1763311658156,9.78882769,136.44,136.43,13.72910085]
[1763311658534,9.78882769,136.44,136.43,13.00910085]
[1763311659136,9.78882769,136.46,136.43,13.72910085]
[1763311659341,9.78882769,136.46,136.45,13.00910085]
[1763311659538,9.78882769,136.44,136.38,0.72]
[1763311659739,9.78882769,136.44,136.4,13.00910085]
[1763311659939,9.78882769,136.42,136.39,13.00910085]
[1763311660828,63.00910085,136.4,136.35,0.2]
[1763311661032,0.26,136.41,136.35,0.2]
[1763311661033,72.79792854,136.38,136.35,0.2]
[1763311661255,59.78882769,136.38,136.35,0.2]
[1763311661437,59.78882769,136.36,136.35,0.2]
[1763311663447,73.05792854,136.36,136.35,0.2]
[1763311663966,77.82486613,136.36,136.35,0.2]
[1763311664271,77.82486613,136.36,136.35,0.03949492]
[1763311664975,50.0,136.35,136.34,0.1]
[1763311665179,77.82486613,136.35,136.34,0.1]
[1763311665347,89.5235962,136.35,136.34,0.1]
[1763311665547,95.57808454,136.35,136.34,0.01977257]
[1763311665768,82.56898369,136.35,136.34,0.01977257]
[1763311665973,89.5235962,136.35,136.34,0.01977257]
[1763311666282,95.57808454,136.35,136.34,0.01977257]
[1763311667173,59.78882769,136.31,136.3,0.2]
[1763311667342,127.82486613,136.31,136.3,0.2]
[1763311667548,77.82486613,136.31,136.3,0.2]
[1763311667741,127.82486613,136.31,136.3,0.2]
[1763311668174,127.82486613,136.31,136.29,0.1]
[1763311668175,160.60661771,136.31,136.29,0.1]
[1763311668358,59.78882769,136.25,136.24,0.2]
[1763311668681,77.56486613,136.25,136.24,0.2]
[1763311668855,9.78882769,136.24,136.23,0.2]
[1763311669057,27.56486613,136.24,136.23,0.2]
[1763311669448,14.55576528,136.24,136.23,0.2]
[1763311669649,27.56486613,136.24,136.23,0.2]
[1763311669978,50.0,136.2,136.19,0.1]
[1763311670192,77.57561661,136.2,136.19,0.1]
[1763311670746,77.57561661,136.2,136.15,45.42557031]
[1763311670747,59.78882769,136.16,136.15,45.42557031]
[1763311670947,79.5756166,136.16,136.15,45.42557031]
[1763311671179,79.5756166,136.16,136.05,0.1]
[1763311671180,82.44002769,136.06,136.05,0.1]
[1763311671377,150.22014003,136.06,136.05,0.1]
[1763311671682,150.22014003,136.06,136.0,1.0]
[1763311671683,59.78882769,136.01,136.0,1.0]
[1763311672180,59.78882769,136.01,136.0,1.66]
[1763311672550,50.0,136.06,136.0,14.66910085]
[1763311672750,9.78882769,136.07,136.03,22.6512]
[1763311672979,9.78882769,136.07,136.04,13.00910085]
[1763311673274,9.78882769,136.05,136.04,0.66]
[1763311673691,50.0,136.04,136.02,22.6512]
[1763311674011,50.0,136.04,136.0,1.0]
[1763311674012,50.0,136.04,136.01,13.00910085]
[1763311674274,9.78882769,136.04,136.01,36.32030085]
[1763311674448,59.78882769,136.03,136.02,0.66]
[1763311674853,59.78882769,136.01,136.0,1.0]
[1763311675051,132.44002769,136.01,136.0,1.0]
[1763311675255,132.44002769,136.01,135.79,3.65625]
[1763311675256,9.78882769,135.92,135.8,7.36329238]
[1763311675454,9.78882769,135.94,135.8,25.772718]
[1763311675673,1.99999999,135.91,135.8,20.37239323]
[1763311675980,1.99999999,135.9,135.8,38.28181885]
[1763311676190,1.99999999,135.96,135.92,22.6512]
[1763311676367,61.78882768,135.98,135.95,13.00910085]
[1763311676549,1.99999999,135.96,135.93,22.6512]
[1763311676754,50.0,136.04,135.95,13.20315575]
[1763311676755,1.99999999,136.02,135.95,13.20315575]
[1763311676955,51.99999999,136.02,135.94,22.6512]
[1763311677195,19.64,136.12,136.01,13.20315575]
[1763311677196,1.99999999,136.07,136.01,13.20315575]
[1763311677369,1.99999999,136.07,135.95,9.78882769]
[1763311677370,1.99999999,136.08,136.06,13.20315575]
[1763311677554,1.99999999,136.08,136.07,13.20315575]
[1763311677759,50.0,136.1,136.07,13.20315575]
[1763311677760,1.99999999,136.09,136.07,13.20315575]
[1763311677966,1.99999999,136.09,136.07,22.6512]
[1763311678275,1.99999999,136.09,136.08,13.20315575]
[1763311678477,1.99999999,136.04,136.0,0.66]
[1763311678676,1.99999999,136.08,136.03,13.20315575]
[1763311678995,1.99999999,136.05,136.0,23.3112]
[1763311679156,9.78882769,136.06,136.0,0.66]
[1763311679356,11.78882768,136.06,136.0,0.66]
[1763311679560,40.2912,136.12,136.0,0.66]
[1763311679561,1.99999999,136.08,136.02,22.6512]
[1763311679876,1.99999999,136.09,136.03,22.6512]
[1763311680078,1.99999999,136.07,136.03,22.6512]
[1763311680280,9.78882769,136.06,136.0,23.3112]
[1763311680502,11.78882768,136.04,136.03,35.85435575]
[1763311680663,50.0,136.1,136.03,35.85435575]
[1763311680664,1.99999999,136.07,136.03,35.85435575]
[1763311680987,40.2912,136.12,135.98,0.66]
[1763311680988,1.99999999,136.04,135.98,0.66]
[1763311681200,1.99999999,136.05,135.98,0.66]
[1763311681522,1.99999999,136.04,135.98,0.66]
[1763311681798,1.99999999,136.06,135.98,9.78882769]
[1763311682001,1.99999999,136.06,136.05,13.20315575]
[1763311682167,1.99999999,136.06,136.02,22.6512]
[1763311682368,1.99999999,136.04,136.02,22.6512]
[1763311682675,9.78882769,136.05,136.03,13.20315575]
[1763311682676,1.99999999,136.05,136.03,13.20315575]
[1763311682992,1.99999999,136.07,136.03,0.66]
[1763311683177,1.99999999,136.11,136.04,0.66]
[1763311683376,50.0,136.14,136.04,0.66]
[1763311683377,1.99999999,136.09,136.04,0.66]
[1763311683559,3.84217019,136.25,136.04,0.66]
[1763311683560,50.0,136.11,136.04,0.66]
[1763311683888,1.99999999,136.12,135.96,0.66]
[1763311683889,11.78882768,136.04,135.96,0.66]
[1763311684097,9.78882769,136.08,136.03,13.20315575]
[1763311684098,1.99999999,136.05,136.03,13.20315575]
[1763311684392,1.99999999,136.05,136.04,13.20315575]
[1763311684393,11.78882768,136.05,136.04,13.20315575]
[1763311684605,1.99999999,136.06,136.04,13.20315575]
[1763311684760,22.6512,136.12,136.07,22.6512]
[1763311684761,11.78882768,136.09,136.07,22.6512]
[1763311684962,1.99999999,136.12,136.04,0.66]
[1763311685197,1.99999999,136.12,136.11,13.20315575]
[1763311685403,1.99999999,136.15,136.13,22.6512]
[1763311685705,1.99999999,136.17,136.14,13.20315575]
[1763311686003,1.99999999,136.13,136.11,22.6512]
[1763311686190,1.99999999,136.13,136.12,13.20315575]
[1763311686400,1.99999999,136.13,136.07,22.6512]
[1763311686596,1.99999999,136.13,136.12,35.85435575]
[1763311686796,9.78882769,136.14,136.12,35.85435575]
[1763311687001,51.99999999,136.17,136.13,13.20315575]
[1763311687179,51.99999999,136.17,136.12,22.6512]
[1763311687180,9.78882769,136.16,136.12,22.6512]
[1763311687706,1.99999999,136.18,136.15,22.6512]
[1763311687907,1.99999999,136.17,136.15,22.6512]
[1763311688093,1.99999999,136.17,136.11,22.6512]
[1763311688293,1.99999999,136.19,136.16,35.85435575]
[1763311688519,9.78882769,136.19,136.18,13.20315575]
[1763311689043,1.99999999,136.23,136.19,22.6512]
[1763311689207,1.99999999,136.26,136.25,22.6512]
[1763311689377,17.66,136.28,136.17,0.66]
[1763311689585,1.99999999,136.23,136.22,13.20315575]
[1763311689778,1.99999999,136.26,136.22,13.20315575]
[1763311690098,11.78882768,136.26,136.17,30.65485051]
[1763311690319,1.99999999,136.27,136.17,30.65485051]
[1763311690481,17.66,136.28,136.17,30.65485051]
[1763311690482,1.99999999,136.24,136.17,30.65485051]
[1763311690683,1.99999999,136.29,136.21,22.6512]
[1763311690898,1.99999999,136.3,136.21,22.6512]
[1763311691100,1.99999999,136.3,136.29,13.20315575]
[1763311691291,0.2,136.34,136.29,13.20315575]
[1763311691292,51.99999999,136.32,136.29,13.20315575]
[1763311691519,51.99999999,136.32,136.26,22.6512]
[1763311691520,1.99999999,136.31,136.23,22.6512]
[1763311691815,1.99999999,136.33,136.3,13.20315575]
[1763311691981,1.99999999,136.33,136.32,13.20315575]
[1763311692416,0.2,136.34,136.32,35.85435575]
[1763311692591,0.2,136.34,136.33,13.20315575]
[1763311692812,2.19999999,136.34,136.33,13.20315575]
[1763311693745,1.99999999,136.33,136.32,22.6512]
[1763311694039,0.2,136.34,136.33,0.67]
[1763311694248,1.99999999,136.37,136.33,23.3212]
[1763311694620,1.99999999,136.4,136.34,0.67]
[1763311694944,1.99999999,136.41,136.36,22.6512]